[Event "*** Titled Tuesday Blitz"]
[Site "Chess.com"]
[Date "2020.05.05"]
[Round "4"]
[White "crackcubano"]
[Black "Charlottemillard17"]
[Result "1-0"]
[WhiteElo "2606"]
[BlackElo "1428"]
[TimeControl "180+1"]
[EndTime "10:38:34 PDT"]
[Termination "crackcubano won by checkmate"]

1. e4 {[%clk 0:03:00.9]} 1... e5 {[%clk 0:02:58.9]} 2. Nf3 {[%clk 0:03:00.3]}
2... Nc6 {[%clk 0:02:57.5]} 3. Bc4 {[%clk 0:02:57.8]} 3... Bc5 {[%clk
0:02:55.9]} 4. c3 {[%clk 0:02:57.5]} 4... h6 {[%clk 0:02:52.9]} 5. d4 {[%clk
0:02:56.5]} 5... exd4 {[%clk 0:02:52.8]} 6. cxd4 {[%clk 0:02:56]} 6... Bb4+
{[%clk 0:02:52.9]} 7. Nc3 {[%clk 0:02:55.9]} 7... d6 {[%clk 0:02:44]} 8. O-O
{[%clk 0:02:52]} 8... Bxc3 {[%clk 0:02:38.8]} 9. bxc3 {[%clk 0:02:51]} 9... Nge7
{[%clk 0:02:38.6]} 10. h3 {[%clk 0:02:41.7]} 10... O-O {[%clk 0:02:37.5]} 11.
Bb3 {[%clk 0:02:41.5]} 11... Kh8 {[%clk 0:02:35.9]} 12. Re1 {[%clk 0:02:37.2]}
12... f5 {[%clk 0:02:32]} 13. e5 {[%clk 0:02:36.8]} 13... dxe5 {[%clk
0:02:30.1]} 14. Nxe5 {[%clk 0:02:36.4]} 14... Nxe5 {[%clk 0:02:27.4]} 15. Rxe5
{[%clk 0:02:35.6]} 15... Ng6 {[%clk 0:02:19.4]} 16. Re1 {[%clk 0:02:34.2]} 16...
f4 {[%clk 0:02:18]} 17. Ba3 {[%clk 0:02:30.6]} 17... Rf6 {[%clk 0:02:10.2]} 18.
c4 {[%clk 0:02:13.8]} 18... f3 {[%clk 0:02:04.5]} 19. g3 {[%clk 0:02:11.5]}
19... Bxh3 {[%clk 0:02:02.4]} 20. d5 {[%clk 0:02:11.2]} 20... Qd7 {[%clk
0:01:49.2]} 21. c5 {[%clk 0:01:54.3]} 21... Rd8 {[%clk 0:01:43.4]} 22. Bb2
{[%clk 0:01:48.4]} 22... Rf5 {[%clk 0:01:30.4]} 23. d6 {[%clk 0:01:34.4]} 23...
cxd6 {[%clk 0:01:29]} 24. Be6 {[%clk 0:01:33.8]} 24... Qc7 {[%clk 0:01:14]} 25.
Bxf5 {[%clk 0:01:33]} 25... Bxf5 {[%clk 0:01:12.3]} 26. Qxf3 {[%clk 0:01:32.9]}
26... Rf8 {[%clk 0:01:08.6]} 27. cxd6 {[%clk 0:01:32.4]} 27... Qxd6 {[%clk
0:01:05]} 28. Qxb7 {[%clk 0:01:31.3]} 28... Qc5 {[%clk 0:00:55.9]} 29. Qxg7#
{[%clk 0:01:27.3]} 1-0

[Event "*** Titled Tuesday Blitz"]
[Site "Chess.com"]
[Date "2020.05.05"]
[Round "4"]
[White "Alliswell998"]
[Black "Kensei26"]
[Result "1-0"]
[WhiteElo "2493"]
[BlackElo "2155"]
[TimeControl "180+1"]
[EndTime "10:38:38 PDT"]
[Termination "Alliswell998 won by resignation"]

1. e4 {[%clk 0:01:42.7]} 1... d6 {[%clk 0:02:44.4]} 2. Nc3 {[%clk 0:01:42.4]}
2... Nf6 {[%clk 0:02:41.9]} 3. f4 {[%clk 0:01:42]} 3... d5 {[%clk 0:02:40.1]} 4.
e5 {[%clk 0:01:42.1]} 4... d4 {[%clk 0:02:40]} 5. exf6 {[%clk 0:01:42.7]} 5...
dxc3 {[%clk 0:02:40.1]} 6. fxg7 {[%clk 0:01:43]} 6... cxd2+ {[%clk 0:02:40]} 7.
Qxd2 {[%clk 0:01:42.5]} 7... Qxd2+ {[%clk 0:02:39.6]} 8. Bxd2 {[%clk 0:01:43.4]}
8... Bxg7 {[%clk 0:02:40.1]} 9. O-O-O {[%clk 0:01:44.1]} 9... Nc6 {[%clk
0:02:38]} 10. Nf3 {[%clk 0:01:44.4]} 10... Be6 {[%clk 0:02:36.9]} 11. Bb5 {[%clk
0:01:44.5]} 11... a6 {[%clk 0:02:36]} 12. Bxc6+ {[%clk 0:01:44.8]} 12... bxc6
{[%clk 0:02:36.1]} 13. Ne5 {[%clk 0:01:45.2]} 13... Bxe5 {[%clk 0:02:10.5]} 14.
fxe5 {[%clk 0:01:46.1]} 14... O-O-O {[%clk 0:02:06.2]} 15. Bb4 {[%clk
0:01:41.9]} 15... Rxd1+ {[%clk 0:02:03.6]} 16. Rxd1 {[%clk 0:01:42.8]} 16... Rg8
{[%clk 0:02:03.1]} 17. g3 {[%clk 0:01:42.7]} 17... f6 {[%clk 0:01:57.4]} 18.
Bxe7 {[%clk 0:01:35.4]} 18... fxe5 {[%clk 0:01:56.6]} 19. Re1 {[%clk 0:01:35.8]}
19... Kd7 {[%clk 0:01:46.4]} 20. Bf6 {[%clk 0:01:34.7]} 20... Rf8 {[%clk
0:01:44.1]} 21. Bxe5 {[%clk 0:01:32.5]} 21... Rf2 {[%clk 0:01:44]} 22. Rd1+
{[%clk 0:01:26]} 22... Bd5 {[%clk 0:01:34.9]} 23. c4 {[%clk 0:01:24.4]} 23...
Ke6 {[%clk 0:01:29.6]} 24. Bd4 {[%clk 0:01:24.1]} 24... Rxh2 {[%clk 0:01:20.9]}
25. cxd5+ {[%clk 0:01:23.4]} 25... cxd5 {[%clk 0:01:21.2]} 26. Re1+ {[%clk
0:01:19.3]} 26... Kd6 {[%clk 0:01:20.1]} 27. Be5+ {[%clk 0:01:16.4]} 27... Kd7
{[%clk 0:01:18]} 28. Rf1 {[%clk 0:01:14.8]} 28... c5 {[%clk 0:01:14.9]} 29. Rf6
{[%clk 0:01:12.5]} 29... Re2 {[%clk 0:01:11]} 30. Bf4 {[%clk 0:01:03.3]} 30...
d4 {[%clk 0:01:05.5]} 31. Rxa6 {[%clk 0:01:02.5]} 31... Ke7 {[%clk 0:01:01.6]}
32. Bd6+ {[%clk 0:01:01.6]} 1-0

[Event "*** Titled Tuesday Blitz"]
[Site "Chess.com"]
[Date "2020.05.05"]
[Round "4"]
[White "petroniy_arbitr"]
[Black "Anna_ChessMate"]
[Result "0-1"]
[WhiteElo "2310"]
[BlackElo "2516"]
[TimeControl "180+1"]
[EndTime "10:38:40 PDT"]
[Termination "Anna_ChessMate won by resignation"]

1. d4 {[%clk 0:03:00.9]} 1... Nf6 {[%clk 0:02:59.4]} 2. c4 {[%clk 0:03:00.8]}
2... g6 {[%clk 0:03:00]} 3. Nc3 {[%clk 0:03:00.4]} 3... d5 {[%clk 0:03:00.5]} 4.
cxd5 {[%clk 0:02:59.6]} 4... Nxd5 {[%clk 0:03:01.4]} 5. e3 {[%clk 0:02:59.9]}
5... Bg7 {[%clk 0:03:01.3]} 6. Nxd5 {[%clk 0:03:00.2]} 6... Qxd5 {[%clk
0:03:00.8]} 7. Ne2 {[%clk 0:03:00.8]} 7... O-O {[%clk 0:03:00.8]} 8. Nc3 {[%clk
0:03:01.3]} 8... Qa5 {[%clk 0:03:01]} 9. Bd2 {[%clk 0:02:49.3]} 9... e5 {[%clk
0:03:00.8]} 10. d5 {[%clk 0:02:41.9]} 10... c6 {[%clk 0:02:56.3]} 11. e4 {[%clk
0:02:34.6]} 11... cxd5 {[%clk 0:02:55.6]} 12. Nxd5 {[%clk 0:02:34.4]} 12... Qd8
{[%clk 0:02:42.3]} 13. Rc1 {[%clk 0:02:25.8]} 13... Nc6 {[%clk 0:02:41.8]} 14.
Bc4 {[%clk 0:02:22.5]} 14... Kh8 {[%clk 0:02:40.8]} 15. O-O {[%clk 0:02:20.1]}
15... f5 {[%clk 0:02:41.2]} 16. exf5 {[%clk 0:02:11.5]} 16... Bxf5 {[%clk
0:02:40.9]} 17. Bc3 {[%clk 0:02:02.8]} 17... Nd4 {[%clk 0:02:39.8]} 18. Re1
{[%clk 0:01:35.2]} 18... b5 {[%clk 0:02:22.6]} 19. Bxd4 {[%clk 0:01:20.9]} 19...
exd4 {[%clk 0:02:21.5]} 20. Bb3 {[%clk 0:01:19.7]} 20... a5 {[%clk 0:02:21.2]}
21. Nc7 {[%clk 0:00:53]} 21... Rb8 {[%clk 0:02:10.4]} 22. Ne6 {[%clk 0:00:47.8]}
22... Bxe6 {[%clk 0:02:10.7]} 23. Rxe6 {[%clk 0:00:47.2]} 23... a4 {[%clk
0:02:10.3]} 24. Bc2 {[%clk 0:00:44]} 24... Qd5 {[%clk 0:02:08.5]} 25. Qg4 {[%clk
0:00:27.1]} 25... Qxa2 {[%clk 0:02:02.6]} 26. Rxg6 {[%clk 0:00:20.2]} 26... Qxb2
{[%clk 0:01:58.1]} 27. Rd1 {[%clk 0:00:12.3]} 27... Qxc2 {[%clk 0:01:56.7]} 28.
Rxg7 {[%clk 0:00:12.5]} 28... Qxf2+ {[%clk 0:01:56.7]} 0-1

[Event "*** Titled Tuesday Blitz"]
[Site "Chess.com"]
[Date "2020.05.05"]
[Round "4"]
[White "robertofabregas"]
[Black "Trickov"]
[Result "0-1"]
[WhiteElo "2086"]
[BlackElo "2291"]
[TimeControl "180+1"]
[EndTime "10:38:41 PDT"]
[Termination "Trickov won on time"]

1. d4 {[%clk 0:03:00.9]} 1... d5 {[%clk 0:02:15.8]} 2. Bf4 {[%clk 0:02:58]} 2...
Nf6 {[%clk 0:02:14]} 3. e3 {[%clk 0:02:58.2]} 3... c5 {[%clk 0:02:12]} 4. c3
{[%clk 0:02:57.9]} 4... Qb6 {[%clk 0:02:11.3]} 5. Qb3 {[%clk 0:02:56.6]} 5... c4
{[%clk 0:02:11.1]} 6. Qxb6 {[%clk 0:02:56.2]} 6... axb6 {[%clk 0:02:11.4]} 7.
Nd2 {[%clk 0:02:54.4]} 7... b5 {[%clk 0:02:11.4]} 8. a3 {[%clk 0:02:53.8]} 8...
Bf5 {[%clk 0:02:11.1]} 9. h3 {[%clk 0:02:48.8]} 9... Nbd7 {[%clk 0:02:08.5]} 10.
g4 {[%clk 0:02:49.2]} 10... Bg6 {[%clk 0:02:07.9]} 11. Bg2 {[%clk 0:02:47.8]}
11... e6 {[%clk 0:02:07]} 12. Ngf3 {[%clk 0:02:47.4]} 12... h6 {[%clk
0:02:06.2]} 13. O-O {[%clk 0:02:43.7]} 13... Nb6 {[%clk 0:02:06.2]} 14. Ne5
{[%clk 0:02:07.4]} 14... Bh7 {[%clk 0:02:04]} 15. e4 {[%clk 0:01:51.3]} 15...
Nxe4 {[%clk 0:02:00.8]} 16. Nxe4 {[%clk 0:01:51.2]} 16... dxe4 {[%clk
0:01:56.6]} 17. g5 {[%clk 0:01:30.6]} 17... hxg5 {[%clk 0:01:52.9]} 18. Bg3
{[%clk 0:01:25.4]} 18... f6 {[%clk 0:01:34.6]} 0-1

[Event "*** Titled Tuesday Blitz"]
[Site "Chess.com"]
[Date "2020.05.05"]
[Round "4"]
[White "IMinTheWings"]
[Black "PavelChernomordik"]
[Result "0-1"]
[WhiteElo "2182"]
[BlackElo "2412"]
[TimeControl "180+1"]
[EndTime "10:38:42 PDT"]
[Termination "PavelChernomordik won by resignation"]

1. c4 {[%clk 0:03:00.9]} 1... g6 {[%clk 0:02:59.4]} 2. d4 {[%clk 0:02:59.9]}
2... Bg7 {[%clk 0:02:57.7]} 3. e4 {[%clk 0:03:00.3]} 3... Nc6 {[%clk 0:02:55.3]}
4. Nf3 {[%clk 0:02:58.8]} 4... d6 {[%clk 0:02:54.2]} 5. Nc3 {[%clk 0:02:58]}
5... Bg4 {[%clk 0:02:52.6]} 6. Be3 {[%clk 0:02:57.6]} 6... Bxf3 {[%clk
0:02:50.9]} 7. gxf3 {[%clk 0:02:57.3]} 7... e5 {[%clk 0:02:48.9]} 8. d5 {[%clk
0:02:53.9]} 8... Nd4 {[%clk 0:02:45.8]} 9. f4 {[%clk 0:02:49.8]} 9... c5 {[%clk
0:02:41.8]} 10. dxc6 {[%clk 0:02:41.2]} 10... bxc6 {[%clk 0:02:38.5]} 11. Bg2
{[%clk 0:02:18]} 11... Nf6 {[%clk 0:02:31.7]} 12. O-O {[%clk 0:02:16.6]} 12...
Nd7 {[%clk 0:02:26.5]} 13. fxe5 {[%clk 0:01:49.9]} 13... dxe5 {[%clk 0:02:25.1]}
14. b4 {[%clk 0:01:44.3]} 14... O-O {[%clk 0:02:23.3]} 15. a4 {[%clk 0:01:42.9]}
15... a5 {[%clk 0:02:10.9]} 16. b5 {[%clk 0:01:40.5]} 16... Nb6 {[%clk
0:02:01.1]} 17. Qd3 {[%clk 0:01:28.8]} 17... Nf3+ {[%clk 0:01:57.7]} 18. Bxf3
{[%clk 0:01:03]} 18... Qxd3 {[%clk 0:01:58.6]} 19. Be2 {[%clk 0:00:57.7]} 19...
Qxc3 {[%clk 0:01:56.5]} 20. Rfc1 {[%clk 0:00:57.5]} 20... Qb2 {[%clk 0:01:49.5]}
21. Bd1 {[%clk 0:00:49.6]} 21... Nxc4 {[%clk 0:01:43.3]} 22. Rab1 {[%clk
0:00:42.5]} 22... Qxb1 {[%clk 0:01:38.2]} 23. Rxb1 {[%clk 0:00:42.1]} 23... Nxe3
{[%clk 0:01:37.1]} 24. fxe3 {[%clk 0:00:43]} 24... cxb5 {[%clk 0:01:36.7]} 25.
axb5 {[%clk 0:00:43.7]} 25... a4 {[%clk 0:01:36]} 26. b6 {[%clk 0:00:44.6]}
26... a3 {[%clk 0:01:34]} 27. b7 {[%clk 0:00:45.5]} 27... Rab8 {[%clk
0:01:31.6]} 0-1

[Event "*** Titled Tuesday Blitz"]
[Site "Chess.com"]
[Date "2020.05.05"]
[Round "4"]
[White "Nikolaj_6"]
[Black "GMJustin"]
[Result "1-0"]
[WhiteElo "2609"]
[BlackElo "2382"]
[TimeControl "180+1"]
[EndTime "10:38:44 PDT"]
[Termination "Nikolaj_6 won on time"]

1. e4 {[%clk 0:03:00.9]} 1... e5 {[%clk 0:02:54]} 2. Nf3 {[%clk 0:03:00.4]} 2...
Nc6 {[%clk 0:02:53.6]} 3. Bb5 {[%clk 0:03:00.3]} 3... d6 {[%clk 0:02:46.5]} 4.
d4 {[%clk 0:02:58.2]} 4... exd4 {[%clk 0:02:44.6]} 5. Nxd4 {[%clk 0:02:58]} 5...
Bd7 {[%clk 0:02:44.4]} 6. Bxc6 {[%clk 0:02:55]} 6... bxc6 {[%clk 0:02:43.6]} 7.
O-O {[%clk 0:02:54.5]} 7... c5 {[%clk 0:02:38.2]} 8. Ne2 {[%clk 0:02:53.3]} 8...
g6 {[%clk 0:02:31.7]} 9. Nbc3 {[%clk 0:02:49.6]} 9... Bg7 {[%clk 0:02:30.5]} 10.
Bf4 {[%clk 0:02:43.8]} 10... Ne7 {[%clk 0:02:23.4]} 11. Qd2 {[%clk 0:02:42.7]}
11... Rb8 {[%clk 0:02:10.3]} 12. Bh6 {[%clk 0:02:29.5]} 12... O-O {[%clk
0:02:04.1]} 13. Bxg7 {[%clk 0:02:29.1]} 13... Kxg7 {[%clk 0:02:03.9]} 14. b3
{[%clk 0:02:26.4]} 14... f5 {[%clk 0:01:58.7]} 15. Rad1 {[%clk 0:02:13.3]} 15...
Bc6 {[%clk 0:01:38.4]} 16. e5 {[%clk 0:02:04.6]} 16... d5 {[%clk 0:01:02.6]} 17.
Nf4 {[%clk 0:02:02.2]} 17... Qd7 {[%clk 0:01:02.7]} 18. Ncxd5 {[%clk 0:01:54]}
18... Bxd5 {[%clk 0:00:54.2]} 19. Nxd5 {[%clk 0:01:53.9]} 19... Rbd8 {[%clk
0:00:53.7]} 20. c4 {[%clk 0:01:44.7]} 20... c6 {[%clk 0:00:39]} 21. e6 {[%clk
0:01:43.4]} 21... Qxe6 {[%clk 0:00:22.2]} 22. Qb2+ {[%clk 0:01:40.3]} 22... Kf7
{[%clk 0:00:01.3]} 23. Rde1 {[%clk 0:01:37.6]} 1-0

[Event "*** Titled Tuesday Blitz"]
[Site "Chess.com"]
[Date "2020.05.05"]
[Round "4"]
[White "PauloCesarCosta_sad"]
[Black "mikolka1985"]
[Result "0-1"]
[WhiteElo "2193"]
[BlackElo "2571"]
[TimeControl "180+1"]
[EndTime "10:38:44 PDT"]
[Termination "mikolka1985 won on time"]

1. Nf3 {[%clk 0:03:00.9]} 1... Nf6 {[%clk 0:02:58.4]} 2. c4 {[%clk 0:03:00.6]}
2... b6 {[%clk 0:02:56.9]} 3. g3 {[%clk 0:03:00.2]} 3... Bb7 {[%clk 0:02:55.3]}
4. Bg2 {[%clk 0:03:00.6]} 4... e6 {[%clk 0:02:54.4]} 5. O-O {[%clk 0:03:00.4]}
5... Be7 {[%clk 0:02:54.7]} 6. Nc3 {[%clk 0:03:00.5]} 6... O-O {[%clk
0:02:51.1]} 7. d4 {[%clk 0:03:00.4]} 7... Ne4 {[%clk 0:02:50]} 8. Qc2 {[%clk
0:03:00.4]} 8... Nxc3 {[%clk 0:02:48.9]} 9. Qxc3 {[%clk 0:03:00.5]} 9... Be4
{[%clk 0:02:48.7]} 10. Ne1 {[%clk 0:02:43]} 10... Bxg2 {[%clk 0:02:46.3]} 11.
Nxg2 {[%clk 0:02:43.9]} 11... d6 {[%clk 0:02:45]} 12. Be3 {[%clk 0:02:13.3]}
12... c5 {[%clk 0:02:43]} 13. dxc5 {[%clk 0:02:07.3]} 13... bxc5 {[%clk
0:02:41.5]} 14. Rfd1 {[%clk 0:02:08.2]} 14... Qc7 {[%clk 0:02:39.6]} 15. Nf4
{[%clk 0:01:58.5]} 15... Nc6 {[%clk 0:02:38.5]} 16. Rd2 {[%clk 0:01:50.7]} 16...
Rfd8 {[%clk 0:02:35.8]} 17. Rc1 {[%clk 0:01:42.4]} 17... Rab8 {[%clk 0:02:29.8]}
18. b3 {[%clk 0:01:35.6]} 18... Bf6 {[%clk 0:02:27.6]} 19. Qc2 {[%clk
0:01:29.9]} 19... a5 {[%clk 0:02:25.6]} 20. Nh5 {[%clk 0:01:19.8]} 20... Be5
{[%clk 0:02:24]} 21. Qe4 {[%clk 0:01:06.2]} 21... a4 {[%clk 0:02:20.7]} 22. bxa4
{[%clk 0:00:59.5]} 22... Ra8 {[%clk 0:02:04.5]} 23. f4 {[%clk 0:00:51.9]} 23...
Bd4 {[%clk 0:02:03.1]} 24. Bxd4 {[%clk 0:00:47.3]} 24... Nxd4 {[%clk 0:01:53.7]}
25. e3 {[%clk 0:00:41.9]} 25... f5 {[%clk 0:01:51.3]} 0-1

[Event "*** Titled Tuesday Blitz"]
[Site "Chess.com"]
[Date "2020.05.05"]
[Round "4"]
[White "Shield12"]
[Black "LiderChessAcademy"]
[Result "1-0"]
[WhiteElo "2808"]
[BlackElo "2458"]
[TimeControl "180+1"]
[EndTime "10:38:49 PDT"]
[Termination "Shield12 won by checkmate"]

1. e4 {[%clk 0:03:00.9]} 1... c5 {[%clk 0:02:58.8]} 2. Nf3 {[%clk 0:03:00.7]}
2... d6 {[%clk 0:02:59.1]} 3. c3 {[%clk 0:03:00.6]} 3... Nf6 {[%clk 0:02:58.8]}
4. Bd3 {[%clk 0:03:00.8]} 4... Bg4 {[%clk 0:02:51.3]} 5. Bc2 {[%clk 0:03:00.7]}
5... Nc6 {[%clk 0:02:51]} 6. h3 {[%clk 0:02:59.5]} 6... Bh5 {[%clk 0:02:48.4]}
7. d3 {[%clk 0:02:59.1]} 7... e6 {[%clk 0:02:46.1]} 8. Bf4 {[%clk 0:02:57.7]}
8... Be7 {[%clk 0:02:44]} 9. Nbd2 {[%clk 0:02:57.3]} 9... d5 {[%clk 0:02:37.2]}
10. Qe2 {[%clk 0:02:50.5]} 10... O-O {[%clk 0:02:29]} 11. g4 {[%clk 0:02:46.9]}
11... Bg6 {[%clk 0:02:27.9]} 12. h4 {[%clk 0:02:47.3]} 12... dxe4 {[%clk
0:02:25.9]} 13. dxe4 {[%clk 0:02:45.8]} 13... h5 {[%clk 0:02:21.2]} 14. gxh5
{[%clk 0:02:39.1]} 14... Bxh5 {[%clk 0:01:57.1]} 15. Rg1 {[%clk 0:02:36.8]}
15... e5 {[%clk 0:01:45.5]} 16. Bg5 {[%clk 0:02:33.4]} 16... Qb6 {[%clk
0:01:21.1]} 17. O-O-O {[%clk 0:02:30.6]} 17... Rad8 {[%clk 0:01:16.7]} 18. Kb1
{[%clk 0:02:17.8]} 18... Rd7 {[%clk 0:01:12.1]} 19. Nc4 {[%clk 0:02:12.7]} 19...
Qc7 {[%clk 0:01:07.7]} 20. Ne3 {[%clk 0:02:09.5]} 20... Rfd8 {[%clk 0:00:55.2]}
21. Rxd7 {[%clk 0:02:07.1]} 21... Qxd7 {[%clk 0:00:53.2]} 22. Nf5 {[%clk
0:02:07.1]} 22... g6 {[%clk 0:00:42.9]} 23. Qe3 {[%clk 0:02:06.4]} 23... Ng4
{[%clk 0:00:26.7]} 24. Nxe7+ {[%clk 0:02:04.7]} 24... Nxe7 {[%clk 0:00:26]} 25.
Qxc5 {[%clk 0:02:03]} 25... f6 {[%clk 0:00:24.9]} 26. Bc1 {[%clk 0:01:51.7]}
26... b6 {[%clk 0:00:25]} 27. Qc4+ {[%clk 0:01:47.5]} 27... Kh7 {[%clk
0:00:24.5]} 28. Qf7+ {[%clk 0:01:46.2]} 28... Kh8 {[%clk 0:00:21.7]} 29. Rxg4
{[%clk 0:01:43.6]} 29... Bxg4 {[%clk 0:00:20.6]} 30. Qxf6+ {[%clk 0:01:43.1]}
30... Kh7 {[%clk 0:00:19.9]} 31. Ng5+ {[%clk 0:01:41.8]} 31... Kg8 {[%clk
0:00:20.4]} 32. Qf7+ {[%clk 0:01:41.6]} 32... Kh8 {[%clk 0:00:21.3]} 33. Qh7#
{[%clk 0:01:41.8]} 1-0

[Event "*** Titled Tuesday Blitz"]
[Site "Chess.com"]
[Date "2020.05.05"]
[Round "4"]
[White "WhiteCapital80"]
[Black "Enriquack"]
[Result "1-0"]
[WhiteElo "2465"]
[BlackElo "2282"]
[TimeControl "180+1"]
[EndTime "10:38:53 PDT"]
[Termination "WhiteCapital80 won by resignation"]

1. e4 {[%clk 0:03:00.9]} 1... c5 {[%clk 0:02:58.9]} 2. Nf3 {[%clk 0:03:00.8]}
2... e6 {[%clk 0:02:59.3]} 3. d4 {[%clk 0:03:01.2]} 3... cxd4 {[%clk 0:03:00.2]}
4. Nxd4 {[%clk 0:03:01.4]} 4... Nc6 {[%clk 0:03:00.7]} 5. Nc3 {[%clk 0:03:01.3]}
5... Qc7 {[%clk 0:03:00.7]} 6. Be2 {[%clk 0:03:01.1]} 6... Nf6 {[%clk
0:02:59.1]} 7. O-O {[%clk 0:02:54.9]} 7... Be7 {[%clk 0:02:58.2]} 8. Be3 {[%clk
0:02:52.2]} 8... O-O {[%clk 0:02:57.6]} 9. f4 {[%clk 0:02:52.1]} 9... d6 {[%clk
0:02:57.7]} 10. Kh1 {[%clk 0:02:51.3]} 10... a6 {[%clk 0:02:56.1]} 11. a4 {[%clk
0:02:51]} 11... b6 {[%clk 0:02:28.8]} 12. Nxc6 {[%clk 0:02:49.5]} 12... Qxc6
{[%clk 0:02:27.1]} 13. Bf3 {[%clk 0:02:35.9]} 13... e5 {[%clk 0:02:26.8]} 14. f5
{[%clk 0:02:30.6]} 14... Bb7 {[%clk 0:02:12.4]} 15. Qe2 {[%clk 0:02:23.3]} 15...
Rac8 {[%clk 0:02:03.7]} 16. g4 {[%clk 0:02:20.4]} 16... Nd7 {[%clk 0:01:50.8]}
17. Nd5 {[%clk 0:02:17.3]} 17... Bd8 {[%clk 0:01:30.5]} 18. c3 {[%clk
0:02:17.4]} 18... Qc4 {[%clk 0:01:28.7]} 19. Qg2 {[%clk 0:02:02.6]} 19... Bxd5
{[%clk 0:01:25.3]} 20. exd5 {[%clk 0:02:02.4]} 20... e4 {[%clk 0:01:16.4]} 21.
Be2 {[%clk 0:01:54.3]} 21... Qxd5 {[%clk 0:01:16.2]} 22. Rfd1 {[%clk 0:01:47.9]}
22... Qc6 {[%clk 0:01:12.9]} 23. Bxa6 {[%clk 0:01:46.1]} 23... Rb8 {[%clk
0:00:35.9]} 24. Bb5 {[%clk 0:01:41.7]} 24... Qc7 {[%clk 0:00:35.6]} 25. Qxe4
{[%clk 0:01:39.1]} 25... Nc5 {[%clk 0:00:34.6]} 26. Qf3 {[%clk 0:01:37.1]} 26...
h6 {[%clk 0:00:29.5]} 27. Bf4 {[%clk 0:01:30.5]} 27... Be7 {[%clk 0:00:29.7]}
28. f6 {[%clk 0:01:28.8]} 28... Bxf6 {[%clk 0:00:23.8]} 29. Bxd6 {[%clk
0:01:26.8]} 29... Qb7 {[%clk 0:00:24.1]} 30. Qxb7 {[%clk 0:01:24.7]} 1-0

[Event "*** Titled Tuesday Blitz"]
[Site "Chess.com"]
[Date "2020.05.05"]
[Round "4"]
[White "albano87"]
[Black "MarcoRiehle"]
[Result "0-1"]
[WhiteElo "2399"]
[BlackElo "2618"]
[TimeControl "180+1"]
[EndTime "10:38:56 PDT"]
[Termination "MarcoRiehle won by resignation"]

1. Nf3 {[%clk 0:03:00.9]} 1... c5 {[%clk 0:02:57.6]} 2. c4 {[%clk 0:02:56.5]}
2... Nf6 {[%clk 0:02:57]} 3. g3 {[%clk 0:02:53.1]} 3... d5 {[%clk 0:02:56.8]} 4.
cxd5 {[%clk 0:02:51.1]} 4... Nxd5 {[%clk 0:02:57.7]} 5. Bg2 {[%clk 0:02:50.2]}
5... Nc6 {[%clk 0:02:58.2]} 6. O-O {[%clk 0:02:50.7]} 6... e5 {[%clk 0:02:56.4]}
7. Nc3 {[%clk 0:02:51.2]} 7... Be6 {[%clk 0:02:54.7]} 8. d3 {[%clk 0:02:48.2]}
8... Be7 {[%clk 0:02:54.2]} 9. Nxd5 {[%clk 0:02:40.6]} 9... Bxd5 {[%clk
0:02:55.1]} 10. Be3 {[%clk 0:02:41.1]} 10... O-O {[%clk 0:02:53.6]} 11. Nd2
{[%clk 0:02:36.6]} 11... Rc8 {[%clk 0:02:38.7]} 12. Bxd5 {[%clk 0:02:33.5]}
12... Qxd5 {[%clk 0:02:39.6]} 13. Qb3 {[%clk 0:02:31.4]} 13... Qxb3 {[%clk
0:02:39.4]} 14. Nxb3 {[%clk 0:02:32.3]} 14... Nd4 {[%clk 0:02:39.7]} 15. Bxd4
{[%clk 0:02:28.8]} 15... cxd4 {[%clk 0:02:40.6]} 16. Rac1 {[%clk 0:02:27]} 16...
b6 {[%clk 0:02:34.6]} 17. Rxc8 {[%clk 0:02:23.6]} 17... Rxc8 {[%clk 0:02:35.5]}
18. Rc1 {[%clk 0:02:23.8]} 18... Rxc1+ {[%clk 0:02:35.9]} 19. Nxc1 {[%clk
0:02:23.6]} 19... f5 {[%clk 0:02:35.5]} 20. f4 {[%clk 0:02:19.7]} 20... exf4
{[%clk 0:02:33.6]} 21. gxf4 {[%clk 0:02:17.6]} 21... Bd6 {[%clk 0:02:34.1]} 22.
e3 {[%clk 0:02:05.5]} 22... dxe3 {[%clk 0:02:13.5]} 23. Ne2 {[%clk 0:02:01.8]}
23... h6 {[%clk 0:02:12]} 24. Kg2 {[%clk 0:01:59.4]} 24... g5 {[%clk 0:02:11.8]}
25. Nd4 {[%clk 0:01:41.2]} 25... Bxf4 {[%clk 0:02:06.7]} 26. Nxf5 {[%clk
0:01:36.8]} 26... Kh7 {[%clk 0:01:52.9]} 27. Kf3 {[%clk 0:01:22]} 27... Bxh2
{[%clk 0:01:47.5]} 28. Nxe3 {[%clk 0:01:19.2]} 28... h5 {[%clk 0:01:45.7]} 29.
d4 {[%clk 0:01:16]} 29... Kg6 {[%clk 0:01:42.6]} 30. b4 {[%clk 0:01:04.6]} 30...
g4+ {[%clk 0:01:36.9]} 31. Kg2 {[%clk 0:01:00.3]} 31... Bf4 {[%clk 0:01:36.9]}
32. Nd5 {[%clk 0:00:57]} 32... Kg5 {[%clk 0:01:35.4]} 33. b5 {[%clk 0:00:50.4]}
33... h4 {[%clk 0:01:33.4]} 34. Ne7 {[%clk 0:00:47.9]} 34... h3+ {[%clk
0:01:32.9]} 35. Kh1 {[%clk 0:00:45]} 35... g3 {[%clk 0:01:32.9]} 36. Nc6 {[%clk
0:00:41.1]} 36... g2+ {[%clk 0:01:32.2]} 37. Kg1 {[%clk 0:00:40.4]} 37... Be3+
{[%clk 0:01:32.4]} 0-1